bitfinex/quotes_SOLUSD_20250829
["timestamp","ask_amount","ask_price","bid_price","bid_amount"]
[1756472446872,14.003163,212.27,212.2,14.033163]
[1756472447076,14.003163,212.25,212.2,14.033163]
[1756472447262,14.003163,212.22,212.2,0.03]
[1756472447584,54.263163,212.21,212.2,0.03]
[1756472447996,54.943163,212.21,212.2,0.03]
[1756472448369,26.0,212.27,212.2,0.69]
[1756472448670,14.003163,212.25,212.2,0.03]
[1756472448863,3.91849235,212.32,212.21,14.003163]
[1756472449069,14.003163,212.28,212.22,14.003163]
[1756472449595,14.003163,212.24,212.2,0.03]
[1756472449775,54.243163,212.23,212.2,0.03]
[1756472449973,54.923163,212.23,212.2,0.03]
[1756472450466,40.92,212.23,212.2,0.03]
[1756472450887,0.68,212.22,212.2,0.03]
[1756472451083,14.683163,212.22,212.2,0.03]
[1756472451300,14.003163,212.22,212.2,0.03]
[1756472451592,0.68,212.21,212.2,0.03]
[1756472451792,44.95191401,212.23,212.2,0.03]
[1756472451969,14.003163,212.25,212.2,0.03]
[1756472452172,40.24,212.22,212.2,0.03]
[1756472452369,40.24,212.21,212.2,0.03]
[1756472452592,40.24,212.22,212.2,0.03]
[1756472453175,0.68,212.21,212.2,0.03]
[1756472453383,14.683163,212.21,212.2,0.03]
[1756472454874,19.39547627,212.21,212.2,0.03]
[1756472455815,59.61547627,212.21,212.2,0.03]
[1756472455979,73.21107028,212.21,212.2,0.03]
[1756472456882,59.20790728,212.21,212.2,0.03]
[1756472457097,73.21107028,212.21,212.2,0.03]
[1756472457469,59.61547627,212.21,212.2,0.03]
[1756472458393,39.59559401,212.18,212.17,0.03]
[1756472458691,53.59875701,212.18,212.17,0.03]
[1756472458872,54.27875701,212.18,212.17,0.03]
[1756472459267,58.99173655,212.18,212.17,0.03]
[1756472459471,31.39297954,212.18,212.17,0.03]
[1756472459680,54.223163,212.18,212.17,0.03]
[1756472460401,54.903163,212.18,212.17,0.03]
[1756472460897,68.49875701,212.18,212.17,0.03]
[1756472461290,73.21173655,212.18,212.17,0.03]
[1756472464078,39.59559401,212.11,212.1,0.03]
[1756472464309,39.59559401,212.1,212.05,0.1]
[1756472464513,40.003163,212.06,212.05,0.1]
[1756472464679,93.79875701,212.06,212.05,0.1]
[1756472464882,40.28559401,212.06,212.05,0.1]
[1756472465098,94.48875701,212.06,212.05,0.1]
[1756472465306,99.20440352,212.06,212.05,0.1]
[1756472465801,31.40564651,212.06,212.05,0.1]
[1756472466008,26.0,212.09,212.05,0.79]
[1756472466308,40.2,212.08,212.07,14.003163]
[1756472466481,40.2,212.08,212.07,14.693163]
[1756472466685,40.2,212.08,212.05,0.1]
[1756472466992,40.2,212.08,212.05,0.79]
[1756472467310,4.71542415,212.07,212.05,0.79]
[1756472467482,40.2,212.08,212.05,0.79]
[1756472467688,4.71468007,212.11,212.06,0.69]
[1756472467891,40.2,212.1,212.09,14.003163]
[1756472468095,40.2,212.1,212.09,0.69]
[1756472468583,54.203163,212.1,212.05,0.1]
[1756472468782,14.003163,212.08,212.05,0.1]
[1756472468981,40.2,212.07,212.05,0.1]
[1756472469181,18.71880951,212.06,212.05,0.1]
[1756472469410,58.91880951,212.06,212.05,0.1]
[1756472469582,40.003163,212.08,212.05,0.79]
[1756472469778,40.2,212.07,212.05,0.79]
[1756472470586,14.003163,212.09,212.05,0.79]
[1756472470791,40.003163,212.14,212.06,0.69]
[1756472470982,14.003163,212.09,212.05,0.1]
[1756472471310,40.2,212.08,212.05,0.1]
[1756472471484,40.2,212.07,212.05,0.79]
[1756472472008,18.71800394,212.1,212.05,0.79]
[1756472472209,40.2,212.09,212.05,0.1]
[1756472472406,54.203163,212.09,212.05,0.1]
[1756472472904,54.203163,212.09,212.05,0.79]
[1756472473280,14.003163,212.07,212.05,0.1]
[1756472473499,44.91564651,212.06,212.05,0.1]
[1756472473712,4.71544829,212.07,212.05,0.1]
[1756472473900,40.18,212.06,212.05,0.1]
[1756472474613,54.183163,212.06,212.05,0.1]
[1756472475115,40.18,212.06,212.05,0.1]
[1756472475415,44.89564651,212.06,212.05,0.1]
[1756472475797,4.71564651,212.06,212.05,0.1]
[1756472475987,44.89564651,212.06,212.05,0.1]
[1756472476195,40.18,212.06,212.05,14.793163]
[1756472476394,4.71431265,212.12,212.05,14.793163]
[1756472476605,40.18,212.11,212.06,14.003163]
[1756472476794,40.18,212.11,212.06,14.693163]
[1756472477210,40.18,212.1,212.06,14.693163]
[1756472477703,4.71497948,212.09,212.06,0.69]
[1756472477899,14.003163,212.13,212.05,0.1]
[1756472478105,40.18,212.12,212.07,14.003163]
[1756472478306,40.18,212.12,212.07,0.69]
[1756472478512,40.18,212.12,212.07,14.693163]
[1756472479097,0.69,212.11,212.06,14.003163]
[1756472479616,40.18,212.12,212.07,14.723163]
[1756472479815,4.71453491,212.11,212.07,14.033163]
[1756472480010,4.71453491,212.11,212.07,0.03]
[1756472480196,4.71453491,212.11,212.0,0.1]
[1756472480198,53.59875701,212.08,212.0,0.1]
[1756472480518,39.59559401,211.96,211.95,0.1]
[1756472480690,80.163163,211.96,211.95,0.1]
[1756472480894,80.853163,211.96,211.95,0.1]
[1756472481694,40.693163,211.96,211.95,0.1]
[1756472482007,85.57103429,211.96,211.95,0.1]
[1756472482324,39.59559401,211.93,211.85,0.03]
[1756472482507,93.75875701,211.93,211.85,0.03]
[1756472482819,94.44875701,211.93,211.85,0.03]
[1756472483805,92.44875701,211.93,211.85,0.03]
[1756472484121,97.16729615,211.93,211.85,0.03]
[1756472485123,99.57314948,211.93,211.85,0.03]
[1756472485320,3.72139813,211.97,211.85,0.03]
[1756472485321,40.16,211.94,211.92,0.72]
[1756472486303,61.28739323,211.94,211.92,0.03]
[1756472487022,16.40901633,211.93,211.92,0.03]
[1756472487525,21.12577497,212.01,211.92,21.84770723]
[1756472487825,40.16,212.0,211.96,16.40901633]
[1756472488030,40.16,211.99,211.92,0.03]
[1756472488216,4.71742617,211.98,211.93,17.09901633]
[1756472488420,4.71742617,211.98,211.94,0.69]
[1756472488734,40.16,211.97,211.94,0.69]
[1756472488933,40.16,211.97,211.92,0.03]
[1756472489128,56.56901633,211.97,211.92,0.03]
[1756472489335,56.56901633,211.97,211.93,0.69]
[1756472490307,61.2868809,211.97,211.93,0.69]
[1756472490511,61.2868809,211.97,211.94,0.71]
[1756472490512,40.16,211.97,211.94,0.71]
[1756472491024,44.87766667,211.97,211.92,0.03]
[1756472491216,44.87766667,211.97,211.92,17.14901633]
[1756472491423,40.16,211.96,211.92,16.43901633]
[1756472491733,16.40901633,211.95,211.92,0.03]
[1756472491935,40.16,211.94,211.92,0.03]
[1756472492530,26.0,211.98,211.93,0.71]
[1756472492831,40.16,211.97,211.94,0.71]
[1756472493004,40.16,211.97,211.94,16.40901633]
[1756472493306,4.7160913,212.04,211.96,16.40901633]
[1756472493506,82.56901633,212.03,211.97,16.40901633]
[1756472493712,16.40901633,212.02,211.95,0.71]
[1756472493920,16.40901633,212.02,211.96,16.40901633]
[1756472494317,16.40901633,212.02,211.95,17.11901633]
[1756472494632,16.40901633,212.0,211.94,16.40901633]
[1756472494830,40.16,211.99,211.95,16.40901633]
[1756472495038,40.14,211.98,211.96,17.11901633]
[1756472495216,40.14,211.97,211.96,16.40901633]
[1756472495731,40.14,211.97,211.96,17.11901633]
[1756472495930,40.14,211.97,211.92,4.7486897]
[1756472495931,40.14,211.97,211.93,17.11901633]
[1756472496107,40.14,211.97,211.92,0.03]
[1756472496305,17.10901633,211.96,211.92,0.03]
[1756472496506,21.12711022,211.95,211.92,0.03]
[1756472496732,40.14,211.94,211.92,0.03]
[1756472497648,17.10901633,211.93,211.92,0.03]
[1756472497807,30.70461034,211.93,211.92,0.03]
[1756472498410,35.42314948,211.93,211.92,0.03]
[1756472498612,61.26755547,211.93,211.92,0.03]
[1756472498826,26.0,211.95,211.92,0.03]
[1756472499029,40.14,211.94,211.92,17.14901633]
[1756472499233,40.14,211.94,211.93,17.11901633]
[1756472500447,40.14,211.97,211.93,21.83749469]
[1756472500616,40.14,211.97,211.96,16.40901633]
[1756472500814,40.14,211.97,211.96,0.71]
[1756472501015,40.14,211.97,211.96,16.40901633]
[1756472501336,40.14,211.97,211.94,16.40901633]
[1756472501836,40.14,211.97,211.95,16.40901633]
[1756472502434,0.06,212.0,211.96,17.11901633]
[1756472502631,40.14,211.99,211.97,16.40901633]
[1756472503134,40.14,211.99,211.96,16.40901633]
[1756472503442,40.14,211.98,211.97,16.40901633]
[1756472503941,0.06,212.0,211.97,17.11901633]
[1756472504236,0.06,212.0,211.99,16.40901633]
[1756472504436,0.06,212.0,211.99,21.12621997]
[1756472504643,40.18,212.0,211.99,17.11901633]
[1756472506241,0.06,212.0,211.99,17.11901633]
[1756472506944,0.06,212.0,211.99,0.71]
[1756472507127,0.06,212.0,211.99,16.40901633]
[1756472507537,40.18,212.0,211.99,16.40901633]
[1756472507733,57.28901633,212.0,211.92,0.03]
[1756472507923,16.40901633,211.98,211.92,0.03]
[1756472508324,17.10901633,211.98,211.92,0.03]
[1756472508838,16.40901633,211.97,211.92,0.03]
[1756472509031,56.52901633,211.96,211.92,0.03]
[1756472509234,0.7,211.95,211.92,0.03]
[1756472509537,40.12,211.96,211.92,0.03]
[1756472510625,40.12,211.96,211.92,16.43901633]
[1756472511246,40.1,211.95,211.92,17.14901633]
[1756472511976,40.1,211.95,211.93,0.71]
[1756472512147,40.1,211.95,211.92,16.43901633]
[1756472512343,0.06,212.0,211.94,16.40901633]
[1756472512545,40.1,211.99,211.98,16.40901633]
[1756472513171,40.1,211.99,211.95,5.42805723]
[1756472513353,40.1,211.99,211.96,16.40901633]
[1756472513666,40.1,211.99,211.97,16.40901633]
[1756472514766,40.1,211.99,211.96,17.11901633]
[1756472514978,40.1,211.99,211.92,26.03]
[1756472515269,0.06,212.0,211.98,16.40901633]
[1756472515443,0.06,212.0,211.99,16.40901633]
[1756472515642,0.06,212.0,211.99,17.11901633]
[1756472516551,0.06,212.0,211.99,21.83621997]
[1756472516967,0.06,212.0,211.99,5.42720364]
[1756472518970,0.06,212.0,211.99,21.83621997]
[1756472520274,0.06,212.03,212.02,26.0]
[1756472520457,0.72,212.03,212.02,16.40901633]
[1756472520652,0.06,212.03,212.02,16.40901633]
[1756472522179,0.72,212.03,211.99,16.40901633]
[1756472522673,0.72,212.03,212.0,16.40901633]
[1756472523196,57.12901633,212.02,211.96,26.0]
[1756472523373,17.06901633,212.01,211.95,16.40901633]
[1756472523581,17.06901633,212.0,211.92,0.03]
[1756472524061,17.06901633,212.0,211.94,16.40901633]
[1756472524265,0.66,211.99,211.94,16.40901633]
[1756472524460,0.66,211.98,211.92,0.03]
[1756472524649,40.06,211.98,211.97,16.40901633]
[1756472525253,40.06,211.98,211.96,16.40901633]
[1756472525467,40.06,211.98,211.94,16.40901633]
[1756472525468,0.66,211.97,211.94,16.40901633]
[1756472525666,40.06,211.98,211.94,16.40901633]
[1756472525877,0.66,211.97,211.92,0.03]
[1756472526080,0.66,211.97,211.93,16.40901633]
[1756472526253,0.66,211.96,211.92,0.03]
[1756472526458,0.66,211.96,211.92,16.43901633]
[1756472526659,0.66,211.95,211.92,0.03]
[1756472526974,16.40901633,211.93,211.9,0.03]
[1756472527175,16.40901633,211.91,211.9,0.03]
[1756472527361,16.40901633,211.91,211.89,0.03]
[1756472527560,40.7,211.92,211.72,0.65]
[1756472527561,13.59559401,211.86,211.72,0.65]
[1756472527757,16.40901633,211.83,211.75,16.40901633]
[1756472527953,16.40901633,211.83,211.77,16.40901633]
[1756472528167,0.66,211.83,211.75,16.40901633]
[1756472528350,17.06901633,211.83,211.76,16.40901633]
[1756472528858,40.04,211.83,211.8,16.40901633]
[1756472529058,0.66,211.87,211.82,16.43901633]
[1756472529260,40.04,211.86,211.82,16.43901633]
[1756472529873,40.04,211.86,211.82,21.1599901]
[1756472530082,40.04,211.86,211.82,16.43901633]
[1756472530287,56.44901633,211.86,211.82,0.03]
[1756472530452,17.06901633,211.85,211.82,0.03]
[1756472530869,0.66,211.85,211.82,0.03]
[1756472531070,17.06901633,211.84,211.82,0.03]
[1756472531261,40.04,211.83,211.82,0.03]
[1756472531475,26.0,211.87,211.82,0.03]
[1756472531787,19.50868876,211.93,211.82,0.03]
[1756472531788,40.04,211.86,211.82,0.03]
[1756472531971,40.04,211.85,211.83,16.40901633]
[1756472532495,17.06901633,211.89,211.82,4.7509661]
[1756472532658,40.04,211.88,211.83,16.40901633]
[1756472532860,0.66,211.87,211.82,16.43901633]
[1756472533152,0.66,211.86,211.82,0.03]
[1756472533556,0.66,211.85,211.82,0.03]
[1756472533773,40.04,211.84,211.82,0.03]
[1756472533972,40.7,211.84,211.82,0.03]
[1756472534594,40.04,211.83,211.82,16.43901633]
[1756472534885,0.66,211.89,211.82,17.08901633]
[1756472535177,40.04,211.88,211.83,16.40901633]
[1756472535356,40.04,211.88,211.84,16.40901633]
[1756472535556,40.7,211.88,211.82,0.03]
[1756472535779,40.7,211.88,211.83,16.40901633]
[1756472535988,40.7,211.88,211.83,21.12974965]
[1756472536166,26.0,211.91,211.85,16.40901633]
[1756472536484,40.7,211.9,211.85,16.40901633]
[1756472536658,57.10901633,211.9,211.84,16.40901633]
[1756472536860,40.7,211.9,211.85,16.40901633]
[1756472537061,3.91849235,211.99,211.89,16.40901633]
[1756472537261,0.66,212.01,211.96,16.40901633]
[1756472537482,42.18901633,212.0,211.93,16.40901633]
[1756472537788,42.40901633,211.96,211.9,16.40901633]
[1756472537973,40.04,211.95,211.91,16.40901633]
[1756472538284,40.04,211.96,211.94,16.40901633]
[1756472538496,40.04,211.95,211.94,0.65]
[1756472539689,0.06,212.02,211.94,17.05901633]
[1756472539898,0.06,212.02,211.92,26.0]
[1756472539899,40.02,212.01,211.95,5.36809389]
[1756472540063,40.02,212.01,212.0,16.40901633]
[1756472540462,0.06,212.02,212.0,16.40901633]
[1756472540663,0.72,212.02,211.95,4.71809389]
[1756472540884,0.06,212.02,211.97,16.40901633]
[1756472541077,0.66,212.01,211.96,16.40901633]
[1756472541276,0.66,212.0,211.92,4.71876179]
[1756472541475,0.66,211.99,211.94,16.40901633]
[1756472541676,40.02,211.98,211.95,16.40901633]
[1756472542075,45.39742692,211.98,211.95,16.40901633]
[1756472542280,45.39742692,211.98,211.94,16.40901633]
[1756472542478,0.66,211.97,211.94,16.40901633]
[1756472542685,0.66,211.97,211.85,11.80024836]
[1756472542686,0.66,211.96,211.92,16.40901633]
[1756472542879,0.66,211.95,211.92,16.40901633]
[1756472543204,40.02,211.94,211.92,16.40901633]
[1756472543584,40.02,211.94,211.93,16.40901633]
[1756472544092,40.02,211.94,211.91,16.40901633]
[1756472544390,40.02,211.94,211.93,16.40901633]
[1756472544595,40.02,211.94,211.92,16.40901633]
[1756472547187,44.7383176,211.94,211.91,16.40901633]
[1756472547388,40.02,211.94,211.92,16.40901633]
[1756472547687,17.06901633,211.93,211.86,16.40901633]
[1756472547888,16.40901633,211.92,211.86,16.40901633]
[1756472548080,17.06901633,211.93,211.87,16.40901633]
[1756472548589,16.40901633,211.91,211.84,16.40901633]
[1756472548797,57.06901633,211.9,211.84,16.40901633]
[1756472548976,40.66,211.9,211.84,16.40901633]
[1756472549170,40.0,211.9,211.86,16.40901633]
[1756472549475,0.66,211.89,211.84,16.40901633]
[1756472549679,0.66,211.88,211.82,0.03]
[1756472549883,16.40901633,211.86,211.82,0.03]
[1756472550092,40.66,211.85,211.82,0.03]
[1756472550489,45.3804716,211.85,211.82,0.03]
[1756472550688,44.7204716,211.85,211.82,0.03]
[1756472551290,44.7204716,211.85,211.82,16.43901633]
[1756472551291,40.0,211.85,211.82,16.43901633]
[1756472551604,44.72032664,211.85,211.82,0.03]
[1756472551778,45.39032664,211.85,211.82,0.03]
[1756472552808,45.39032664,211.85,211.84,0.03]
[1756472553902,40.0,211.85,211.84,0.03]
[1756472554580,40.67,211.85,211.84,0.03]
[1756472554777,45.39032098,211.85,211.84,0.03]
[1756472554980,61.79933731,211.85,211.84,0.03]
[1756472555580,45.39032098,211.85,211.84,0.03]
[1756472555884,61.79933731,211.85,211.84,0.03]
[1756472556885,75.39493132,211.85,211.84,0.03]
[1756472558416,39.59559401,211.83,211.82,0.03]
[1756472558712,95.98461034,211.83,211.82,0.03]
[1756472558884,96.65461034,211.83,211.82,0.03]
[1756472560311,96.65461034,211.83,211.81,0.03]
[1756472560493,21.13000584,211.82,211.81,0.03]
[1756472561010,35.39559985,211.82,211.81,0.03]
[1756472561319,40.23618836,211.82,211.79,0.03]
[1756472561490,56.00461034,211.8,211.79,0.03]
[1756472561898,56.67461034,211.8,211.79,0.03]
[1756472562201,56.67461034,211.8,211.79,1e-08]
[1756472562405,30.67461034,211.8,211.79,1e-08]
[1756472562626,30.00461034,211.78,211.77,1e-08]
[1756472562792,69.98461034,211.78,211.77,1e-08]
[1756472562987,70.65461034,211.78,211.77,1e-08]
[1756472564704,75.37649153,211.78,211.77,1e-08]
[1756472565811,95.37649153,211.78,211.77,1e-08]
[1756472566022,137.98649153,211.78,211.77,1e-08]
[1756472566310,69.57649153,211.78,211.77,1e-08]
[1756472566501,93.1474752,211.78,211.77,1e-08]
[1756472566700,109.55649153,211.78,211.77,1e-08]
[1756472570699,112.02576133,211.78,211.77,1e-08]
[1756472572311,112.08576133,211.78,211.77,1e-08]
[1756472573419,113.98064233,211.78,211.77,1e-08]
[1756472573603,113.98064233,211.78,211.68,0.7]
[1756472573604,13.59559401,211.69,211.68,0.7]
[1756472573805,69.96461034,211.69,211.68,0.7]
[1756472574123,53.55559401,211.69,211.68,0.7]
[1756472574324,69.96461034,211.69,211.68,0.7]
[1756472574705,13.59559401,211.68,211.66,0.7]
[1756472574906,39.96,211.67,211.62,16.40901633]
[1756472575105,13.59559401,211.66,211.62,16.40901633]
[1756472575319,39.96,211.65,211.61,16.40901633]
[1756472575622,44.68500472,211.64,211.63,0.7]
[1756472575801,17.36978527,211.66,211.55,26.0]
[1756472575802,13.59559401,211.66,211.62,16.40901633]
[1756472576004,39.96,211.65,211.62,16.40901633]
[1756472576396,39.96,211.65,211.63,0.7]
[1756472576917,53.55559401,211.65,211.64,0.7]
[1756472577119,58.28037548,211.65,211.64,0.7]
[1756472578506,58.28037548,211.65,211.47,228.814304]
[1756472578507,13.59559401,211.64,211.6,16.40901633]
[1756472578717,39.96,211.63,211.61,17.10901633]
[1756472579021,39.96,211.63,211.62,0.7]
[1756472579212,44.68522799,211.63,211.62,0.7]
[1756472579801,58.280822,211.63,211.62,0.7]
[1756472580798,13.59559401,211.62,211.59,0.72]
[1756472581011,13.59559401,211.6,211.57,16.40901633]
[1756472581213,18.32149193,211.6,211.59,0.72]
[1756472581416,58.26149193,211.6,211.59,0.72]
[1756472584020,58.26149193,211.6,211.56,0.72]
[1756472584229,58.26149193,211.6,211.57,0.72]
[1756472584405,58.26149193,211.6,211.55,16.40901633]
[1756472584406,18.32149193,211.6,211.58,0.72]
[1756472584604,39.94,211.59,211.58,0.72]
[1756472585627,39.94,211.59,211.56,0.72]
[1756472586122,39.94,211.59,211.57,0.72]
[1756472586312,4.72634464,211.58,211.55,10.69388984]
[1756472586516,39.94,211.57,211.55,10.69388984]
[1756472587042,39.94,211.57,211.56,0.72]
[1756472587736,39.94,211.57,211.56,11.41388984]
[1756472589317,39.94,211.57,211.56,0.72]
[1756472589522,39.94,211.57,211.56,11.41388984]
[1756472589836,44.66656803,211.57,211.56,11.41388984]
[1756472590134,44.66656803,211.57,211.56,0.72]
[1756472590429,39.94,211.57,211.56,0.72]
[1756472590631,39.94,211.57,211.56,11.41388984]
[1756472590839,39.92,211.57,211.56,11.41388984]
[1756472591315,4.7263541,211.58,211.56,11.41388984]
[1756472591516,4.7263541,211.58,211.57,0.72]
[1756472591721,44.6463541,211.58,211.57,0.72]
[1756472592435,44.6463541,211.58,211.55,11.41388984]
[1756472592737,44.6463541,211.58,211.56,0.72]
[1756472593041,10.69388984,211.57,211.53,0.72]
[1756472593339,13.59559401,211.54,211.51,0.72]
[1756472593537,39.9,211.53,211.44,26.0]
[1756472593725,13.59559401,211.54,211.49,10.69388984]
[1756472593726,39.9,211.52,211.49,10.69388984]
[1756472594042,13.59559401,211.54,211.5,0.72]
[1756472594043,39.9,211.51,211.5,0.72]
[1756472594237,13.59559401,211.56,211.53,0.03]
[1756472594423,0.72,211.6,211.53,0.03]
[1756472594424,4.72500472,211.64,211.55,10.69388984]
[1756472594629,13.59559401,211.61,211.53,0.03]
[1756472594937,39.9,211.6,211.54,11.41388984]
[1756472595118,13.59559401,211.59,211.54,11.41388984]
[1756472595322,39.9,211.58,211.54,11.41388984]
[1756472595737,39.9,211.58,211.55,0.72]
[1756472595917,39.9,211.57,211.55,0.72]
[1756472596112,39.9,211.57,211.56,10.69388984]
[1756472596313,39.9,211.57,211.56,11.41388984]
[1756472596552,11.81083727,211.68,211.56,11.41388984]
[1756472596847,39.9,211.66,211.64,10.69388984]
[1756472597052,39.9,211.66,211.65,11.41388984]
[1756472597624,39.9,211.66,211.63,10.69388984]
[1756472597820,39.9,211.66,211.63,11.41388984]
[1756472598217,39.9,211.66,211.55,4.72701222]
[1756472598423,39.9,211.66,211.61,10.69388984]
[1756472598649,4.72478147,211.65,211.63,10.69388984]
[1756472598949,4.7238887,211.69,211.64,11.41388984]
[1756472599130,39.88,211.68,211.66,10.69388984]
[1756472599324,0.06,211.7,211.67,11.41388984]
[1756472599522,0.06,211.7,211.69,10.69388984]
[1756472599846,39.94,211.7,211.68,10.69388984]
[1756472600146,44.66366556,211.7,211.66,10.69388984]
[1756472600525,44.66366556,211.7,211.65,10.69388984]
[1756472600841,36.69388984,211.67,211.6,10.69388984]
[1756472601142,39.88,211.66,211.61,0.72]
[1756472601342,39.88,211.66,211.61,11.41388984]
[1756472601548,39.88,211.66,211.62,0.72]
[1756472601923,15.41867131,211.65,211.59,10.69388984]
[1756472602118,15.41867131,211.65,211.6,0.72]
[1756472602325,15.41867131,211.65,211.61,0.72]
[1756472602835,10.69388984,211.63,211.58,0.72]
[1756472603024,39.86,211.62,211.58,0.72]
[1756472603629,39.86,211.62,211.56,10.69388984]
[1756472603848,39.86,211.62,211.59,0.72]
[1756472604052,4.72567459,211.61,211.57,0.72]
[1756472604428,15.41956443,211.61,211.57,0.72]
[1756472604929,15.41956443,211.61,211.53,0.03]
[1756472604930,10.69388984,211.6,211.54,0.72]
[1756472605122,39.86,211.59,211.54,0.72]
[1756472605325,39.86,211.59,211.55,0.72]
[1756472605521,39.86,211.59,211.56,0.72]
[1756472605951,39.84,211.58,211.57,11.41388984]
[1756472606132,39.84,211.58,211.57,0.72]
[1756472606962,39.84,211.58,211.55,10.69388984]
[1756472607454,39.84,211.57,211.56,0.72]
[1756472608647,44.5666346,211.57,211.53,0.75]
[1756472608829,44.5666346,211.57,211.53,11.44388984]
[1756472609161,44.5666346,211.57,211.53,0.75]
[1756472610753,44.5666346,211.57,211.53,11.44388984]
[1756472611051,39.82,211.57,211.56,10.69388984]
[1756472611265,4.72502753,211.64,211.56,11.35388984]
[1756472611558,4.72502753,211.64,211.53,4.75735997]
[1756472611559,10.69388984,211.61,211.55,10.69388984]
[1756472611850,40.51,211.63,211.53,0.03]
[1756472611851,39.82,211.6,211.58,10.69388984]
[1756472612050,30.72502753,211.64,211.59,11.35388984]
[1756472612257,51.20388984,211.63,211.57,10.69388984]
[1756472612458,4.72545128,211.62,211.57,10.69388984]
[1756472612661,4.72545128,211.62,211.58,0.66]
[1756472612832,4.72545128,211.62,211.58,10.69388984]
[1756472613240,5.41545128,211.62,211.57,10.69388984]
[1756472613549,10.69388984,211.6,211.54,10.69388984]
[1756472613757,39.82,211.59,211.53,11.38388984]
[1756472614356,39.82,211.59,211.54,10.69388984]
[1756472614551,39.82,211.59,211.55,11.35388984]
[1756472614753,4.72545128,211.62,211.57,10.69388984]
[1756472614930,39.82,211.61,211.58,11.35388984]
[1756472615127,39.8,211.6,211.59,0.66]
[1756472615552,30.72501478,211.64,211.59,11.35388984]
[1756472615737,39.8,211.63,211.6,10.69388984]
[1756472616047,39.8,211.63,211.59,10.69388984]
[1756472616558,44.52559495,211.62,211.58,11.35388984]
[1756472617049,55.90948479,211.62,211.56,10.69388984]
[1756472617246,0.69,211.61,211.56,10.69388984]
[1756472617455,0.69,211.61,211.56,11.35388984]
[1756472617653,0.69,211.6,211.53,0.03]
[1756472617842,39.8,211.59,211.54,10.69388984]
[1756472618041,40.49,211.59,211.53,10.72388984]
[1756472618433,40.49,211.59,211.54,10.69388984]
[1756472618633,4.72634464,211.58,211.54,10.69388984]
[1756472618868,44.52617381,211.59,211.55,11.35388984]
[1756472619632,44.52617381,211.59,211.53,0.03]
[1756472619633,11.38388984,211.58,211.53,0.03]
[1756472620365,44.52617381,211.59,211.53,11.38388984]
[1756472620677,29.91849235,211.62,211.56,10.69388984]
[1756472620963,7.81636849,211.68,211.61,10.69388984]
[1756472620964,8.64264068,211.68,211.61,10.69388984]
[1756472621141,3.97849235,211.7,211.66,10.69388984]
[1756472621459,39.78,211.69,211.65,10.69388984]
[1756472621860,39.78,211.69,211.65,11.35388984]
[1756472622035,39.78,211.69,211.66,0.66]
[1756472622242,39.78,211.69,211.64,10.69388984]
[1756472622457,39.78,211.69,211.64,11.35388984]
[1756472622662,39.78,211.69,211.66,10.69388984]
[1756472622942,39.78,211.69,211.68,10.69388984]
[1756472623135,0.06,211.78,211.75,26.0]
[1756472623362,0.06,211.78,211.76,0.66]
[1756472623558,0.06,211.78,211.77,10.69388984]
[1756472623860,0.06,211.78,211.77,11.35388984]
[1756472624365,0.06,211.78,211.77,10.69388984]
[1756472625344,0.06,211.78,211.73,0.66]
[1756472625548,0.06,211.78,211.77,16.41697397]